bitfinex-derivatives/quotes_BTCF0:USTF0_20240907
["timestamp","ask_amount","ask_price","bid_price","bid_amount"]
[1725727751875,0.01701467,54531.0,54530.0,0.091697]
[1725727752066,0.001,54545.0,54530.0,0.19]
[1725727752067,0.09168,54541.0,54530.0,0.19]
[1725727752271,0.01720385,54540.0,54535.0,0.19]
[1725727752470,0.01720385,54539.0,54535.0,0.19]
[1725727752775,0.19,54543.0,54540.0,0.09168]
[1725727753074,0.10887909,54542.0,54540.0,0.09168]
[1725727753279,0.01720209,54541.0,54540.0,0.09168]
[1725727754077,0.01720209,54541.0,54535.0,0.19]
[1725727754078,0.01720206,54542.0,54541.0,0.091678]
[1725727754269,0.19,54553.0,54545.0,0.091671]
[1725727754580,0.01719964,54552.0,54545.0,0.091671]
[1725727754877,0.091665,54549.0,54545.0,0.091671]
[1725727755071,0.01719964,54548.0,54545.0,0.091671]
[1725727756277,0.20719964,54547.0,54542.0,0.091676]
[1725727756577,0.19,54543.0,54542.0,0.091676]
[1725727756784,0.01719964,54543.0,54542.0,0.091676]
[1725727757373,0.10887064,54546.0,54542.0,0.091676]
[1725727757676,0.01719964,54543.0,54542.0,0.091676]
[1725727757875,0.091671,54546.0,54542.0,0.091676]
[1725727757876,0.01719964,54545.0,54542.0,0.091676]
[1725727758972,0.091671,54546.0,54542.0,0.091676]
[1725727759278,0.091672,54545.0,54542.0,0.091676]
[1725727759880,0.22572177,54544.0,54533.0,0.0165026]
[1725727760176,0.091678,54542.0,54539.0,0.091681]
[1725727760382,0.31993813,54541.0,54539.0,0.091681]
[1725727760584,0.22572177,54540.0,54539.0,0.091681]
[1725727762276,0.091683,54539.0,54532.0,0.0465]
[1725727762576,0.22572177,54538.0,54532.0,0.0465]
[1725727762877,0.22572177,54537.0,54532.0,0.0465]
[1725727763082,0.22572177,54536.0,54532.0,0.0465]
[1725727763376,0.22572177,54535.0,54534.0,0.09169]
[1725727763883,0.22572177,54535.0,54534.0,0.03870914]
[1725727764871,0.22572177,54535.0,54533.0,0.09495111]
[1725727765073,0.22572177,54534.0,54533.0,0.091692]
[1725727765475,0.22572177,54534.0,54533.0,1.241812]
[1725727766282,0.22572177,54534.0,54533.0,0.831812]
[1725727767290,0.22572177,54534.0,54533.0,1.431812]
[1725727767487,0.22572177,54534.0,54533.0,1.523504]
[1725727767874,0.38019476,54535.0,54533.0,1.431812]
[1725727768074,0.37927476,54535.0,54534.0,0.18338]
[1725727768477,0.37927476,54535.0,54534.0,0.7335]
[1725727768878,0.37927476,54535.0,54534.0,1.3335]
[1725727769084,0.091668,54548.0,54534.0,1.24181]
[1725727769285,0.091668,54548.0,54546.0,0.09167]
[1725727769680,0.091668,54548.0,54547.0,0.091668]
[1725727774094,0.10097393,54548.0,54547.0,0.091668]
[1725727774496,0.091668,54548.0,54547.0,0.091668]
[1725727775096,0.10091706,54548.0,54547.0,0.091668]
[1725727777996,0.091668,54548.0,54547.0,0.091668]
[1725727778201,0.091668,54548.0,54547.0,0.281668]
[1725727778400,0.091668,54548.0,54547.0,0.091668]
[1725727778600,0.10100729,54548.0,54547.0,0.091668]
[1725727778795,0.01632905,54551.0,54550.0,0.091663]
[1725727779002,0.091661,54551.0,54550.0,0.091663]
[1725727781301,0.097661,54551.0,54550.0,0.092663]
[1725727782208,0.02319927,54551.0,54550.0,0.092663]
[1725727782408,0.02319927,54551.0,54550.0,0.282663]
[1725727782898,0.1641797,54551.0,54550.0,0.191]
[1725727783094,0.24889281,54551.0,54550.0,0.19]
[1725727783411,0.24889281,54551.0,54550.0,0.281663]
[1725727784002,0.18314445,54551.0,54550.0,0.281663]
[1725727784311,0.18314445,54551.0,54550.0,0.831623]
[1725727784608,0.16594518,54551.0,54550.0,0.831623]
[1725727785112,0.16594518,54551.0,54550.0,1.523286]
[1725727785402,0.08223207,54551.0,54550.0,1.524286]
[1725727785806,0.08223207,54551.0,54550.0,0.642623]
[1725727785995,0.08223207,54551.0,54550.0,0.092663]
[1725727790012,0.007,54551.0,54550.0,0.092663]
[1725727793513,0.197,54551.0,54550.0,0.001]
[1725727794417,0.288661,54551.0,54550.0,0.001]
[1725727797110,0.3058599,54551.0,54550.0,0.001]
[1725727797411,0.00811734,54557.0,54550.0,0.001]
[1725727797617,0.19,54552.0,54550.0,0.001]
[1725727797820,0.10885989,54551.0,54550.0,0.001]
[1725727798123,0.18409196,54551.0,54550.0,0.001]
[1725727798511,0.09243096,54551.0,54550.0,0.001]
[1725727799017,0.01719889,54551.0,54550.0,0.001]
[1725727799721,1.25881989,54551.0,54534.0,0.1427]
[1725727799914,0.19,54542.0,54534.0,0.1427]
[1725727800115,0.09243096,54541.0,54540.0,0.09168]
[1725727800910,0.01719889,54541.0,54540.0,0.09168]
[1725727801110,0.01719889,54541.0,54538.0,0.19]
[1725727801111,0.091677,54542.0,54541.0,0.091678]
[1725727801409,0.1841098,54542.0,54541.0,0.091678]
[1725727802217,0.10887773,54542.0,54541.0,0.091678]
[1725727802722,0.01720073,54542.0,54541.0,0.375356]
[1725727803016,0.0924328,54542.0,54541.0,0.283678]
[1725727803820,0.0924328,54542.0,54541.0,0.30035345]
[1725727804321,0.07523207,54542.0,54541.0,0.11035345]
[1725727804622,0.07523207,54542.0,54541.0,0.30035345]
[1725727805010,0.091666,54549.0,54547.0,0.091668]
[1725727806625,0.091666,54549.0,54548.0,0.091666]
[1725727808519,0.091666,54549.0,54548.0,0.012]
[1725727808727,0.183332,54549.0,54548.0,0.012]
[1725727808936,0.733292,54549.0,54548.0,0.012]
[1725727809321,0.091674,54544.0,54542.0,0.091676]
[1725727809526,0.079674,54544.0,54542.0,0.091676]
[1725727809828,0.091675,54543.0,54542.0,0.091676]
[1725727810523,0.091663,54550.0,54548.0,0.091666]
[1725727810725,0.01720028,54549.0,54548.0,0.091666]
[1725727810920,0.01820028,54549.0,54548.0,0.102666]
[1725727812322,0.01820028,54549.0,54548.0,0.103666]
[1725727812631,0.001,54549.0,54548.0,0.200866]
[1725727812824,0.001,54549.0,54548.0,0.247566]
[1725727813029,0.16095662,54549.0,54548.0,0.20380941]
[1725727814315,0.07623745,54549.0,54548.0,0.20380941]
[1725727815429,0.15895662,54549.0,54548.0,1.43343541]
[1725727815628,0.15995662,54549.0,54548.0,1.44243541]
[1725727816119,0.00033745,54549.0,54548.0,1.44243541]
[1725727817335,0.10191454,54561.0,54560.0,0.091646]
[1725727817531,0.10191454,54561.0,54560.0,0.08248141]
[1725727818223,0.17713009,54561.0,54560.0,0.08248141]
[1725727819136,0.17913009,54561.0,54560.0,0.08248141]
[1725727820233,0.01919537,54561.0,54560.0,0.08248141]
[1725727825027,0.002,54561.0,54560.0,0.08248141]
[1725727825835,0.01919361,54561.0,54560.0,0.08248141]
[1725727826028,0.002,54561.0,54560.0,0.08248141]
[1725727827230,0.01919354,54561.0,54560.0,0.08248141]
[1725727827439,0.002,54561.0,54560.0,0.08248141]
[1725727828132,0.0677302,54561.0,54560.0,0.08248141]
[1725727831542,0.0677302,54561.0,54560.0,0.27248141]
[1725727833932,0.0677302,54561.0,54560.0,0.24523327]
[1725727834132,0.002,54561.0,54560.0,0.24523327]
[1725727842540,0.093645,54561.0,54560.0,0.24523327]
[1725727844153,0.093645,54561.0,54560.0,0.15523327]
[1725727847944,0.002,54561.0,54560.0,0.15523327]
[1725727848447,0.01919446,54561.0,54560.0,0.15523327]
[1725727849457,0.002,54561.0,54560.0,0.15523327]
[1725727850149,0.07721122,54561.0,54560.0,0.15523327]
[1725727851145,0.1429434,54561.0,54560.0,0.13970995]
[1725727854051,0.09165,54558.0,54557.0,0.091651]
[1725727854356,0.16686122,54558.0,54557.0,0.091651]
[1725727854556,0.091656,54555.0,54554.0,0.091656]
[1725727854761,0.16686722,54555.0,54554.0,0.091656]
[1725727855156,0.16486722,54555.0,54554.0,0.091656]
[1725727856363,0.18206379,54555.0,54554.0,0.091656]
[1725727857159,0.24780378,54555.0,54554.0,0.096656]
[1725727857357,0.18206379,54555.0,54554.0,0.096656]
[1725727858161,0.10685257,54555.0,54554.0,0.096656]
[1725727858361,0.10685257,54555.0,54554.0,0.32795669]
[1725727858565,0.10685257,54555.0,54554.0,0.18827168]
[1725727858766,0.01719657,54555.0,54554.0,0.23634203]
[1725727858963,0.01719602,54556.0,54555.0,0.091655]
[1725727859262,0.091653,54557.0,54555.0,0.091655]
[1725727859263,0.091653,54557.0,54556.0,0.1]
[1725727859665,0.10884902,54557.0,54556.0,0.1]
[1725727859963,0.10884902,54557.0,54555.0,0.091655]
[1725727859964,0.091653,54556.0,54555.0,0.091655]
[1725727860154,0.10884902,54556.0,54555.0,0.095655]
[1725727860557,1.241533,54556.0,54554.0,0.07328958]
[1725727860858,0.18032,54552.0,54551.0,0.05497021]
[1725727861063,0.183322,54551.0,54550.0,0.05497021]
[1725727861264,0.091665,54549.0,54548.0,0.05497021]
[1725727861463,0.11719793,54549.0,54546.0,0.05497021]
[1725727861762,0.01219793,54548.0,54546.0,0.05497021]
[1725727862267,0.09167,54546.0,54545.0,0.05497021]
[1725727862569,0.1,54549.0,54545.0,0.05487624]
[1725727862972,0.091672,54545.0,54544.0,0.05487624]
[1725727863366,0.1,54549.0,54543.0,0.05487624]
[1725727863367,0.091673,54544.0,54543.0,0.05487624]
[1725727863563,0.084673,54544.0,54543.0,0.05487624]
[1725727864070,0.084673,54544.0,54543.0,0.19]
[1725727864575,0.085673,54544.0,54543.0,0.194]
[1725727865265,0.001,54544.0,54543.0,0.34050346]
[1725727865462,0.091661,54552.0,54543.0,0.194]
[1725727865664,0.091661,54552.0,54551.0,0.281661]
[1725727865959,0.10841484,54552.0,54551.0,0.281661]
[1725727867571,0.10941484,54552.0,54551.0,0.281661]
[1725727867774,0.001,54552.0,54551.0,0.281661]
[1725727869170,0.091665,54549.0,54548.0,0.091666]
[1725727871871,0.1088638,54549.0,54548.0,0.091666]
[1725727872176,0.092665,54549.0,54548.0,0.091666]
[1725727872564,0.001,54549.0,54548.0,0.091666]
[1725727873076,0.001,54549.0,54548.0,0.14648514]
[1725727873277,0.001,54549.0,54548.0,0.091666]
[1725727874274,0.137763,54551.0,54549.0,0.091665]
[1725727875574,0.138763,54551.0,54549.0,0.093665]
[1725727876173,0.091663,54550.0,54549.0,0.093665]
[1725727877082,0.091663,54550.0,54549.0,0.002]
[1725727877680,0.092663,54550.0,54549.0,0.002]
[1725727879276,0.17561002,54550.0,54549.0,0.002]
[1725727879574,0.15841132,54550.0,54549.0,0.002]
[1725727880178,0.092663,54550.0,54549.0,0.002]
[1725727883375,0.374327,54550.0,54549.0,0.002]
[1725727884088,0.468727,54550.0,54549.0,0.002]
[1725727884880,0.089673,54544.0,54543.0,0.05481914]
[1725727885069,0.279673,54544.0,54543.0,0.05481914]
[1725727886085,0.089673,54544.0,54543.0,0.091675]
[1725727886480,0.089673,54544.0,54543.0,0.16496458]
[1725727886783,0.089673,54544.0,54543.0,0.091675]
[1725727888181,0.090673,54544.0,54543.0,0.091675]
[1725727893581,0.001,54544.0,54543.0,0.091675]
[1725727893891,0.001,54544.0,54543.0,0.187675]
[1725727894782,0.091662,54551.0,54550.0,0.091663]
[1725727896387,0.281662,54551.0,54550.0,0.091663]
[1725727897885,0.282662,54551.0,54550.0,0.091663]
[1725727898578,0.092662,54551.0,54550.0,0.091663]
[1725727901789,0.10986105,54551.0,54550.0,0.091663]
[1725727903183,0.18509297,54551.0,54550.0,0.091663]
[1725727904079,0.091667,54548.0,54547.0,0.091668]
[1725727904278,0.18409797,54548.0,54547.0,0.091668]
[1725727905289,0.18509797,54548.0,54547.0,0.091668]
[1725727907473,0.07623192,54548.0,54547.0,0.091668]
[1725727907672,0.01675447,54553.0,54549.0,0.091665]
[1725727907872,0.19,54555.0,54549.0,0.091665]
[1725727908680,0.20680898,54555.0,54549.0,0.091665]
[1725727908879,0.091663,54550.0,54549.0,0.091665]
[1725727909476,0.091663,54550.0,54549.0,0.103665]
[1725727910283,0.1088615,54550.0,54549.0,0.103665]
[1725727910985,0.1088615,54550.0,54549.0,0.091665]
[1725727911289,0.1098615,54550.0,54549.0,0.103665]
[1725727911876,0.1088615,54550.0,54549.0,0.102665]
[1725727912989,0.1088615,54550.0,54549.0,0.11962175]
[1725727913688,0.1088615,54550.0,54549.0,0.20028675]
[1725727913689,0.0141985,54550.0,54549.0,0.20028675]
[1725727913891,0.001,54550.0,54549.0,0.11662175]
[1725727915090,0.091656,54555.0,54554.0,0.091656]
[1725727915293,0.1,54556.0,54555.0,0.091655]
[1725727916897,0.191653,54556.0,54555.0,0.091655]
[1725727918298,0.191653,54556.0,54555.0,0.094655]
[1725727920501,0.191653,54556.0,54555.0,0.003]
[1725727922212,0.091653,54556.0,54555.0,0.003]
[1725727925196,0.1840733,54556.0,54555.0,0.003]
[1725727925396,0.10885086,54556.0,54555.0,0.003]
[1725727931108,0.091658,54554.0,54552.0,0.091659]
[1725727931302,0.086658,54554.0,54552.0,0.091659]
[1725727931695,0.01719732,54553.0,54552.0,0.091659]
[1725727931897,0.10885532,54553.0,54552.0,0.091659]
[1725727932295,0.091677,54542.0,54540.0,0.09168]
[1725727932495,0.20887638,54542.0,54537.0,0.091685]
[1725727932700,0.09168,54540.0,54539.0,0.091681]
[1725727932902,0.091682,54539.0,54535.0,0.0466]
[1725727933109,0.091682,54539.0,54536.0,0.091686]
[1725727933110,0.01719938,54538.0,54536.0,0.091686]
[1725727933292,0.10888338,54538.0,54537.0,0.091685]
[1725727933493,0.01719938,54538.0,54537.0,0.091685]
[1725727933696,0.00919938,54539.0,54537.0,0.091685]
[1725727933901,0.00919938,54538.0,54537.0,0.091685]
[1725727934106,0.19,54540.0,54537.0,0.091685]
[1725727934504,0.001,54538.0,54537.0,0.105685]
[1725727934704,0.161,54540.0,54537.0,0.105685]
[1725727935502,0.25268,54540.0,54537.0,0.105685]
[1725727935895,0.25268,54540.0,54538.0,0.091683]
[1725727936100,0.09168,54540.0,54539.0,0.091682]
[1725727936602,0.09268,54540.0,54539.0,0.091682]
[1725727936797,0.001,54540.0,54539.0,0.281682]
[1725727937194,0.091668,54547.0,54545.0,0.091671]
[1725727938003,0.09167,54546.0,54545.0,0.091671]
[1725727939915,0.09167,54546.0,54545.0,0.098671]
[1725727940511,0.001,54547.0,54546.0,0.09167]
[1725727940705,0.09166,54552.0,54551.0,0.091661]
[1725727943305,0.09166,54552.0,54551.0,0.092661]
[1725727943911,0.047,54559.0,54549.0,0.19]
[1725727943912,0.047,54559.0,54554.0,0.091656]
[1725727944116,0.06329925,54559.0,54554.0,0.091656]
[1725727945017,0.091655,54555.0,54554.0,0.091656]
[1725727946911,0.11085213,54555.0,54554.0,0.091656]
[1725727947311,0.01919713,54555.0,54554.0,0.091656]
[1725727948820,0.11085213,54555.0,54554.0,0.091656]
[1725727953923,0.21085213,54555.0,54554.0,0.091656]
[1725727954614,0.11085213,54555.0,54554.0,0.091656]
[1725727954812,0.093655,54555.0,54554.0,0.091656]
[1725727961826,0.11085211,54555.0,54554.0,0.091656]
[1725727968636,0.1860754,54555.0,54554.0,0.091656]
[1725727969138,0.091659,54553.0,54550.0,0.1]
[1725727969329,0.0924204,54552.0,54550.0,0.1]
[1725727969529,0.091659,54553.0,54550.0,0.1]
[1725727969530,0.0924204,54551.0,54550.0,0.191663]
[1725727969932,0.07522329,54551.0,54550.0,0.191663]
[1725727970134,0.07522006,54552.0,54551.0,0.091661]
[1725727970434,0.091659,54553.0,54551.0,0.091661]
[1725727972239,0.091659,54553.0,54552.0,0.09166]
[1725727973237,0.10798233,54553.0,54552.0,0.09166]
[1725727974131,0.10898233,54553.0,54552.0,0.09166]
[1725727977538,0.17472726,54553.0,54552.0,0.09166]
[1725727978033,0.19192491,54553.0,54552.0,0.09166]
[1725727982529,0.10026591,54553.0,54552.0,0.09166]
[1725727982735,0.08394136,54553.0,54552.0,0.09166]
[1725727982941,0.06674493,54553.0,54552.0,1.24158]
[1725727983738,0.06674493,54553.0,54552.0,1.33324]
[1725727984239,0.001,54553.0,54552.0,1.33324]
[1725727984436,0.001,54553.0,54552.0,0.73324]
[1725727984640,0.06674493,54553.0,54552.0,1.33324]
[1725727985129,0.06674493,54553.0,54552.0,1.24158]
[1725727985532,0.001,54553.0,54552.0,1.24158]
[1725727987636,0.001,54553.0,54552.0,0.64158]
[1725727988644,0.001,54553.0,54552.0,0.71483265]
[1725727988945,0.001,54553.0,54552.0,0.09166]
[1725727989745,0.001,54553.0,54552.0,0.16489633]
[1725727990449,0.001,54553.0,54552.0,0.09166]
[1725727990944,0.001,54553.0,54552.0,0.16489633]
[1725727991144,0.001,54553.0,54552.0,0.09166]
[1725727991336,0.001,54553.0,54552.0,0.16489633]
[1725727991641,0.001,54553.0,54552.0,0.25655633]
[1725727991841,0.001,54553.0,54552.0,0.25654395]
[1725727992057,0.001,54553.0,54552.0,1.31480395]
[1725727992248,0.001,54553.0,54552.0,1.40646395]
[1725727992443,0.0667334,54553.0,54552.0,1.24158]
[1725727992645,0.0667334,54553.0,54552.0,1.33324]
[1725727995150,0.0667334,54553.0,54552.0,1.4249]
[1725727999858,0.0667334,54553.0,54552.0,1.4389]
[1725728000044,0.0667334,54553.0,54552.0,1.5389]
[1725728000555,0.091637,54566.0,54565.0,0.091638]
[1725728000748,0.10883064,54566.0,54565.0,0.091638]
[1725728003656,0.10983064,54566.0,54565.0,0.097638]
[1725728007064,0.092637,54566.0,54565.0,0.097638]
[1725728008452,0.192637,54566.0,54565.0,0.006]
[1725728008857,0.20983173,54566.0,54565.0,0.006]
[1725728009259,0.192637,54566.0,54565.0,0.006]
[1725728009662,0.092637,54566.0,54565.0,0.006]
[1725728009854,0.01628277,54568.0,54559.0,0.11640684]
[1725728009855,0.09164,54564.0,54559.0,0.11640684]
[1725728010057,0.0448,54563.0,54559.0,0.11640684]
[1725728010261,0.0448,54563.0,54562.0,0.091643]
[1725728011673,0.0448,54563.0,54562.0,0.093643]
[1725728012969,0.0448,54563.0,54562.0,0.193643]
[1725728015560,0.11052996,54563.0,54562.0,0.193643]
[1725728016265,0.11052996,54563.0,54562.0,0.191643]
[1725728016469,0.11052996,54563.0,54562.0,0.192643]
[1725728020963,0.06572996,54563.0,54562.0,0.192643]
[1725728021166,0.06572996,54563.0,54562.0,0.284286]
[1725728021763,0.06572996,54563.0,54562.0,0.283286]
[1725728021976,0.06572996,54563.0,54562.0,0.284286]
[1725728022772,0.09163,54570.0,54569.0,0.091631]
[1725728022964,0.10882239,54570.0,54569.0,0.191631]
[1725728024367,0.11482239,54570.0,54569.0,0.192631]
[1725728025075,0.10882239,54570.0,54569.0,0.192631]
[1725728026778,0.10882239,54570.0,54569.0,0.191631]
[1725728027480,0.10882239,54570.0,54569.0,0.192631]
[1725728027669,0.01719239,54570.0,54569.0,0.192631]
[1725728029685,0.0457,54571.0,54570.0,0.09163]
[1725728029875,0.06289236,54571.0,54570.0,0.09163]
[1725728030273,0.0457,54571.0,54570.0,0.09163]
[1725728030675,0.11142498,54571.0,54570.0,0.09163]
[1725728035180,0.06572498,54571.0,54570.0,0.09163]
[1725728037198,0.08291639,54571.0,54570.0,0.09163]
[1725728037593,0.01719141,54571.0,54570.0,0.09163]
[1725728037794,0.091619,54576.0,54569.0,0.19163]
[1725728038094,0.01719132,54575.0,54569.0,0.09163]
[1725728038688,0.01719132,54575.0,54574.0,0.091623]
[1725728039192,0.01719132,54575.0,54574.0,0.191623]
[1725728039389,0.01719072,54579.0,54578.0,0.091616]
[1725728039593,0.01719046,54579.0,54578.0,0.091616]
[1725728042094,0.02619046,54579.0,54578.0,0.092616]
[1725728042501,0.11780446,54579.0,54578.0,0.092616]
[1725728048090,0.100614,54579.0,54578.0,0.092616]
[1725728049805,0.100614,54579.0,54578.0,0.001]
[1725728050902,0.192228,54579.0,54578.0,0.001]
[1725728052805,0.27513777,54579.0,54578.0,0.001]
[1725728053307,0.35034004,54579.0,54578.0,0.00090001]
[1725728057406,0.35034004,54579.0,54578.0,0.00081001]
[1725728058104,0.091619,54576.0,54575.0,0.08318791]
[1725728058301,0.24973104,54576.0,54575.0,0.08318791]
[1725728059009,0.17452877,54576.0,54575.0,0.08318791]
[1725728059313,0.23254025,54576.0,54575.0,0.08318791]
[1725728059614,0.23754025,54576.0,54575.0,0.08318791]
[1725728059816,0.16233798,54576.0,54575.0,0.08318791]
[1725728060218,0.23754025,54576.0,54575.0,0.08318791]
[1725728060409,0.16233798,54576.0,54575.0,0.08318791]
[1725728060711,0.096619,54576.0,54575.0,0.08318791]
[1725728063213,0.091631,54569.0,54568.0,0.05496246]
[1725728063420,0.091631,54569.0,54564.0,0.091638]
[1725728063421,0.091637,54567.0,54566.0,0.091636]
[1725728063614,0.09164,54564.0,54563.0,0.141141]
[1725728066117,0.09264,54564.0,54563.0,0.141141]
[1725728066820,0.09164,54564.0,54563.0,0.142141]
[1725728067321,0.10883412,54564.0,54563.0,0.142141]
[1725728068511,0.10883412,54564.0,54563.0,0.141141]
[1725728069518,0.10883412,54564.0,54563.0,0.142141]
[1725728071811,0.10883412,54564.0,54563.0,0.0505]
[1725728072021,0.091643,54562.0,54561.0,0.091644]
[1725728072320,0.10183712,54562.0,54561.0,0.091644]
[1725728072712,0.01719412,54562.0,54553.0,0.0494]
[1725728072927,0.090656,54554.0,54553.0,0.0494]
[1725728073227,0.10785012,54554.0,54553.0,0.0494]
[1725728074228,0.090656,54554.0,54553.0,0.0494]
[1725728074528,0.1,54556.0,54549.0,0.1]
[1725728074529,0.091663,54550.0,54549.0,0.1]
[1725728074728,0.089663,54550.0,54549.0,0.1]
[1725728075617,0.089663,54550.0,54549.0,0.092]
[1725728076221,0.089663,54550.0,54548.0,0.14662746]
[1725728076521,0.089663,54550.0,54544.0,0.10176246]
[1725728076522,0.091671,54546.0,54544.0,0.10176246]
[1725728076723,0.091672,54545.0,54544.0,0.0468]
[1725728080822,0.137242,54563.0,54544.0,0.0468]
[1725728081024,0.091655,54556.0,54555.0,0.1]
[1725728081222,0.091655,54556.0,54553.0,0.091657]
[1725728081223,0.091655,54555.0,54553.0,0.091657]
[1725728081529,0.1,54556.0,54550.0,0.091663]
[1725728081729,0.10912608,54556.0,54549.0,0.1]
[1725728082430,0.1,54553.0,54547.0,0.091667]
[1725728082637,0.1,54550.0,54544.0,0.138473]
[1725728083931,0.091671,54546.0,54544.0,0.138473]
[1725728087633,0.091672,54545.0,54544.0,0.138473]
[1725728088034,0.091672,54545.0,54544.0,0.0468]
[1725728089523,0.091672,54545.0,54544.0,0.138473]
[1725728091732,0.091663,54551.0,54550.0,0.091663]
[1725728091933,0.091663,54551.0,54550.0,0.191663]
[1725728093745,0.10850692,54551.0,54550.0,0.191663]
[1725728095133,0.10850692,54551.0,54550.0,0.091663]
[1725728095433,0.09167,54547.0,54545.0,0.091671]
[1725728095634,0.09167,54546.0,54545.0,0.091671]
[1725728099047,0.09167,54546.0,54544.0,0.0468]
[1725728099351,0.091674,54544.0,54542.0,0.1]
[1725728100945,0.091674,54544.0,54543.0,0.091675]
[1725728102046,0.191674,54544.0,54543.0,0.091675]
[1725728105961,0.25743136,54544.0,54543.0,0.091675]
[1725728109457,0.25743136,54544.0,54539.0,0.0633852]
[1725728109458,0.09168,54540.0,54539.0,0.0633852]
[1725728109655,0.09168,54540.0,54539.0,0.0471]
[1725728111557,0.1,54540.0,54536.0,0.091687]
[1725728111949,0.16575736,54540.0,54536.0,0.091687]
[1725728112155,0.091685,54537.0,54536.0,0.091687]
[1725728112657,0.091685,54537.0,54536.0,0.191687]
[1725728117761,0.10888646,54537.0,54536.0,0.191687]
[1725728118060,0.091682,54540.0,54539.0,0.091681]
[1725728118264,0.10888197,54540.0,54539.0,0.191681]
[1725728119363,0.091682,54540.0,54539.0,0.191681]
[1725728120257,0.091682,54540.0,54539.0,0.091681]
[1725728120863,0.091687,54536.0,54535.0,0.1631475]
[1725728121061,0.091687,54536.0,54535.0,0.10820122]
[1725728122464,0.091687,54536.0,54535.0,0.091687]
[1725728125364,0.191687,54536.0,54535.0,0.091687]
[1725728126063,0.091694,54532.0,54526.0,0.1]
[1725728126265,0.191694,54532.0,54531.0,0.091695]
[1725728126865,0.191694,54532.0,54528.0,0.091699]
[1725728126866,0.091697,54530.0,54528.0,0.091699]
[1725728127057,0.0474,54535.0,54528.0,0.091699]
[1725728127058,0.191698,54529.0,54528.0,0.091699]
[1725728127965,0.14582286,54529.0,54528.0,0.34137273]
[1725728128168,0.14582286,54529.0,54528.0,0.2314347]
[1725728128466,0.14582286,54529.0,54528.0,0.23134629]
[1725728128668,0.0917,54528.0,54527.0,0.09161059]
[1725728128967,0.183404,54527.0,54526.0,0.07329606]
[1725728129272,0.091705,54525.0,54523.0,0.07329606]
[1725728129480,0.091709,54523.0,54519.0,0.05497992]
[1725728129765,0.091715,54519.0,54518.0,0.05497992]
[1725728129976,0.091715,54519.0,54516.0,0.05497992]
[1725728129977,0.091719,54517.0,54516.0,0.05497992]
[1725728130266,0.091719,54517.0,54509.0,0.09161059]
[1725728130267,0.091722,54515.0,54514.0,0.05497992]
[1725728130461,0.091725,54513.0,54512.0,0.05497992]
[1725728131461,0.091725,54513.0,54511.0,0.05497992]
[1725728131768,0.1,54512.0,54510.0,0.05497992]
[1725728131975,0.1,54516.0,54511.0,0.091728]
[1725728132166,0.1,54516.0,54511.0,0.14670792]
[1725728132672,0.1,54516.0,54511.0,0.091728]
[1725728132863,0.19172,54516.0,54511.0,0.091728]
[1725728133269,0.19172,54516.0,54511.0,0.14670792]
[1725728133473,0.1,54513.0,54511.0,0.091728]
[1725728135365,0.09172,54516.0,54511.0,0.091728]
[1725728135573,0.09172,54516.0,54512.0,0.091727]
[1725728136568,0.1,54514.0,54512.0,0.091727]
[1725728137973,0.11689035,54514.0,54512.0,0.091727]
[1725728138581,0.20861535,54514.0,54512.0,0.091727]
[1725728139475,0.09173,54510.0,54508.0,0.05497992]
[1725728139676,0.09173,54510.0,54507.0,0.15497992]
[1725728139984,0.091725,54514.0,54513.0,0.091725]
[1725728140179,0.191725,54514.0,54513.0,0.091725]
[1725728141373,0.1,54514.0,54507.0,0.05497992]
[1725728141784,0.091727,54512.0,54511.0,0.091728]
[1725728143185,0.1,54514.0,54502.0,0.01680607]
[1725728143392,0.0479,54513.0,54506.0,0.091736]
[1725728143581,0.1,54507.0,54506.0,0.091736]
[1725728143783,0.191735,54507.0,54506.0,0.091736]
[1725728152286,0.091739,54505.0,54504.0,0.05497992]
[1725728152889,0.091739,54505.0,54503.0,0.05497992]
[1725728153092,0.091739,54505.0,54496.0,0.18336359]
[1725728153093,0.091746,54501.0,54499.0,0.05497992]
[1725728153280,0.091756,54495.0,54494.0,0.05497992]
[1725728153591,0.1499,54500.0,54491.0,0.07329606]
[1725728153592,0.1,54497.0,54491.0,0.07329606]
[1725728153777,0.091756,54495.0,54494.0,0.05477099]
[1725728154191,0.0499,54500.0,54494.0,0.0547712]
[1725728154386,0.0499,54500.0,54491.0,0.07329606]
[1725728154580,0.091754,54496.0,54495.0,0.05479819]
[1725728154785,0.091754,54496.0,54485.0,0.091772]
[1725728154786,0.091756,54495.0,54494.0,0.05479819]
[1725728155088,0.091759,54493.0,54492.0,0.05479819]
[1725728155277,0.191759,54493.0,54492.0,0.05479819]
[1725728155480,1.342279,54493.0,54492.0,0.05479819]
[1725728155690,0.091761,54492.0,54490.0,0.07329606]
[1725728155881,0.091761,54492.0,54491.0,0.07329606]
[1725728156081,0.642321,54492.0,54491.0,0.07329606]
[1725728156283,0.642321,54492.0,54490.0,0.07329606]
[1725728156485,0.191762,54491.0,54487.0,0.09161059]
[1725728156681,0.091762,54491.0,54487.0,0.09161059]
[1725728156883,0.091762,54491.0,54490.0,0.073091]
[1725728157190,0.191762,54491.0,54490.0,0.073091]
[1725728157384,0.742322,54491.0,54490.0,0.073091]
[1725728157586,0.191762,54491.0,54488.0,0.09161059]
[1725728157785,0.191762,54491.0,54487.0,0.18337859]
[1725728157786,0.1,54489.0,54487.0,0.18337859]
[1725728157981,0.1,54489.0,54487.0,0.091768]
[1725728158383,0.1,54489.0,54487.0,0.14660452]
[1725728158583,0.1,54489.0,54488.0,0.05484929]
[1725728158982,0.091761,54493.0,54488.0,0.05484929]
[1725728159278,0.1,54492.0,54491.0,0.091762]
[1725728159477,0.191761,54492.0,54491.0,0.05484929]